[Event "Live Chess"]
[Site "Chess.com"]
[Date "2023.05.20"]
[Round "-"]
[White "EdenHazard8"]
[Black "1PRK1"]
[Result "1-0"]
[WhiteElo "2122"]
[BlackElo "1376"]
[TimeControl "300"]
[EndTime "9:56:17 PDT"]
[Termination "EdenHazard8 won - game abandoned"]

1. e4 {[%clk 0:04:58.6]} 1... c5 {[%clk 0:04:58.6]} 2. Nc3 {[%clk 0:04:57.1]}
2... d6 {[%clk 0:04:47.1]} 3. f4 {[%clk 0:04:56.1]} 3... g6 {[%clk 0:04:41]} 4.
Nf3 {[%clk 0:04:55.3]} 4... Bg7 {[%clk 0:04:40.4]} 5. Bc4 {[%clk 0:04:54.6]}
5... Nf6 {[%clk 0:04:36.4]} 6. d3 {[%clk 0:04:54]} 6... O-O {[%clk 0:04:34.1]}
7. O-O {[%clk 0:04:53.6]} 7... a6 {[%clk 0:04:24.7]} 8. a4 {[%clk 0:04:51.3]}
8... Nc6 {[%clk 0:04:19.7]} 9. Qe1 {[%clk 0:04:49.4]} 9... e6 {[%clk 0:04:14.4]}
10. Qh4 {[%clk 0:04:47]} 10... Ne8 {[%clk 0:03:58.6]} 11. Qh3 {[%clk 0:04:33.3]}
11... e5 {[%clk 0:03:54.1]} 12. f5 {[%clk 0:04:31.7]} 12... gxf5 {[%clk
0:03:49]} 13. Bh6 {[%clk 0:04:27.7]} 13... fxe4 {[%clk 0:03:41.8]} 14. Qg3
{[%clk 0:04:24.7]} 14... Qf6 {[%clk 0:03:36.1]} 15. Bg5 {[%clk 0:04:23.4]} 15...
Qg6 {[%clk 0:03:34.3]} 16. Nh4 {[%clk 0:04:21.9]} 16... Qh5 {[%clk 0:03:30.4]}
17. Nxe4 {[%clk 0:04:20.2]} 17... Be6 {[%clk 0:03:17.2]} 18. Nf6+ {[%clk
0:04:17.3]} 18... Nxf6 {[%clk 0:03:15.4]} 19. Bxf6 {[%clk 0:04:17.2]} 19... Qg4
{[%clk 0:03:07.8]} 20. Qxg4 {[%clk 0:03:43.4]} 20... Bxg4 {[%clk 0:03:05]} 21.
Rf2 {[%clk 0:03:41.3]} 21... Nd4 {[%clk 0:02:35.7]} 22. Raf1 {[%clk 0:03:37]}
22... Ne2+ {[%clk 0:02:30.1]} 23. Kh1 {[%clk 0:03:34.7]} 23... Nf4 {[%clk
0:02:20.3]} 24. Bxg7 {[%clk 0:03:32.2]} 24... Kxg7 {[%clk 0:02:16.1]} 25. g3
{[%clk 0:03:27.8]} 25... Nh3 {[%clk 0:02:13.9]} 26. Rxf7+ {[%clk 0:03:26.4]}
26... Rxf7 {[%clk 0:02:12.2]} 27. Rxf7+ {[%clk 0:03:26.3]} 27... Kh8 {[%clk
0:02:10.7]} 28. Kg2 {[%clk 0:03:20.3]} 28... Rg8 {[%clk 0:01:53.2]} 29. Rf6
{[%clk 0:03:07.8]} 29... Ng5 {[%clk 0:01:46.1]} 30. Bxg8 {[%clk 0:03:04.9]} 1-0

[Event "Live Chess"]
[Site "Chess.com"]
[Date "2023.05.20"]
[Round "-"]
[White "SimpleHarmonic1"]
[Black "Albul"]
[Result "0-1"]
[WhiteElo "2070"]
[BlackElo "2184"]
[TimeControl "300"]
[EndTime "9:56:22 PDT"]
[Termination "Albul won on time"]

1. d4 {[%clk 0:04:59]} 1... f5 {[%clk 0:04:58.1]} 2. c4 {[%clk 0:04:57.7]} 2...
Nf6 {[%clk 0:04:56.5]} 3. Nf3 {[%clk 0:04:56.7]} 3... g6 {[%clk 0:04:55]} 4. g3
{[%clk 0:04:56.2]} 4... Bg7 {[%clk 0:04:54.5]} 5. Bg2 {[%clk 0:04:54.1]} 5...
O-O {[%clk 0:04:54.2]} 6. O-O {[%clk 0:04:51.4]} 6... d6 {[%clk 0:04:53.7]} 7.
Nc3 {[%clk 0:04:48.1]} 7... c6 {[%clk 0:04:53.1]} 8. d5 {[%clk 0:04:44.6]} 8...
c5 {[%clk 0:04:51.8]} 9. Re1 {[%clk 0:04:34.2]} 9... Nh5 {[%clk 0:04:50.3]} 10.
e4 {[%clk 0:04:19.5]} 10... f4 {[%clk 0:04:48.5]} 11. e5 {[%clk 0:04:10.9]}
11... Bg4 {[%clk 0:04:45.8]} 12. e6 {[%clk 0:03:52.9]} 12... Na6 {[%clk
0:04:34.5]} 13. a3 {[%clk 0:03:47.9]} 13... Nc7 {[%clk 0:04:30.8]} 14. Qd3
{[%clk 0:03:44.7]} 14... Rb8 {[%clk 0:04:21.3]} 15. Ng5 {[%clk 0:03:30.9]} 15...
fxg3 {[%clk 0:04:15.8]} 16. hxg3 {[%clk 0:03:23]} 16... Bd4 {[%clk 0:04:07.3]}
17. Be3 {[%clk 0:03:13.1]} 17... Bf5 {[%clk 0:04:03.9]} 18. Be4 {[%clk
0:03:09.2]} 18... Bxe4 {[%clk 0:03:58.5]} 19. Ncxe4 {[%clk 0:03:03.6]} 19...
Bxb2 {[%clk 0:03:48.1]} 20. Ra2 {[%clk 0:02:51.6]} 20... Bf6 {[%clk 0:03:46.1]}
21. Nf7 {[%clk 0:02:45.9]} 21... Qe8 {[%clk 0:03:43.9]} 22. Bh6 {[%clk
0:02:21.9]} 22... Rxf7 {[%clk 0:03:23.5]} 23. exf7+ {[%clk 0:02:17.4]} 23...
Qxf7 {[%clk 0:03:23.1]} 24. Rae2 {[%clk 0:02:00.7]} 24... Bd4 {[%clk 0:02:26.1]}
25. Ng5 {[%clk 0:01:48.7]} 25... Qf6 {[%clk 0:02:19.8]} 26. Ne4 {[%clk
0:01:20.4]} 26... Qf7 {[%clk 0:02:12.2]} 27. Be3 {[%clk 0:00:57.1]} 27... Be5
{[%clk 0:02:04.7]} 28. Ng5 {[%clk 0:00:48.2]} 28... Qf6 {[%clk 0:01:36.7]} 29.
f4 {[%clk 0:00:43.5]} 29... Bc3 {[%clk 0:01:17.6]} 30. Bd2 {[%clk 0:00:38.2]}
30... Bd4+ {[%clk 0:01:12.9]} 31. Kg2 {[%clk 0:00:31.5]} 31... Re8 {[%clk
0:01:01.3]} 32. Ne6 {[%clk 0:00:29.2]} 32... Nxe6 {[%clk 0:00:57.5]} 33. Rxe6
{[%clk 0:00:29.1]} 33... Qf7 {[%clk 0:00:55.9]} 34. Bc3 {[%clk 0:00:15.2]} 34...
Bxc3 {[%clk 0:00:46.9]} 35. Qxc3 {[%clk 0:00:15.1]} 35... Ng7 {[%clk 0:00:45.8]}
36. R6e3 {[%clk 0:00:13.2]} 36... Kf8 {[%clk 0:00:43.6]} 37. Qd2 {[%clk
0:00:12]} 37... Nf5 {[%clk 0:00:40.4]} 38. Re6 {[%clk 0:00:09]} 38... Ng7 {[%clk
0:00:39.3]} 39. R6e3 {[%clk 0:00:07.9]} 39... Qf6 {[%clk 0:00:37.4]} 40. Re6
{[%clk 0:00:07.6]} 40... Nxe6 {[%clk 0:00:35.8]} 41. Rxe6 {[%clk 0:00:07.3]}
41... Qd4 {[%clk 0:00:32.6]} 42. Qe2 {[%clk 0:00:05.5]} 42... a6 {[%clk
0:00:29.1]} 43. Qg4 {[%clk 0:00:05.1]} 43... Qxc4 {[%clk 0:00:26.5]} 44. Qh4
{[%clk 0:00:04.1]} 44... Qxd5+ {[%clk 0:00:21.7]} 0-1

[Event "Live Chess"]
[Site "Chess.com"]
[Date "2023.05.20"]
[Round "-"]
[White "Mikhail_Golubev"]
[Black "RamsayFlayer"]
[Result "0-1"]
[WhiteElo "2538"]
[BlackElo "1998"]
[TimeControl "300"]
[EndTime "9:56:29 PDT"]
[Termination "RamsayFlayer won on time"]

1. e4 {[%clk 0:04:58.1]} 1... e5 {[%clk 0:04:49.5]} 2. Nf3 {[%clk 0:04:56.2]}
2... Nc6 {[%clk 0:04:48.1]} 3. Bc4 {[%clk 0:04:55.7]} 3... Nf6 {[%clk
0:04:46.3]} 4. d3 {[%clk 0:04:55]} 4... Bc5 {[%clk 0:04:44.8]} 5. O-O {[%clk
0:04:53.7]} 5... d6 {[%clk 0:04:43.4]} 6. c3 {[%clk 0:04:51.3]} 6... h6 {[%clk
0:04:41.2]} 7. Nbd2 {[%clk 0:04:39.9]} 7... a5 {[%clk 0:04:35.1]} 8. Re1 {[%clk
0:04:38.3]} 8... Be6 {[%clk 0:04:33]} 9. Bxe6 {[%clk 0:04:30.6]} 9... fxe6
{[%clk 0:04:31.4]} 10. Qb3 {[%clk 0:04:17.8]} 10... Qc8 {[%clk 0:04:29.5]} 11.
d4 {[%clk 0:03:38.8]} 11... exd4 {[%clk 0:04:21.8]} 12. e5 {[%clk 0:03:30]}
12... Ng4 {[%clk 0:03:45.3]} 13. cxd4 {[%clk 0:03:13.9]} 13... Nxd4 {[%clk
0:03:43.1]} 14. Nxd4 {[%clk 0:03:12.4]} 14... Bxd4 {[%clk 0:03:42.4]} 15. Qa4+
{[%clk 0:03:11]} 15... Qd7 {[%clk 0:03:31.8]} 16. Qxd4 {[%clk 0:03:09.4]} 16...
Nxe5 {[%clk 0:03:27.4]} 17. Nc4 {[%clk 0:03:01.2]} 17... Nxc4 {[%clk 0:03:15.3]}
18. Qxc4 {[%clk 0:03:01.1]} 18... d5 {[%clk 0:03:10.8]} 19. Qg4 {[%clk
0:02:56.4]} 19... O-O {[%clk 0:02:56]} 20. Qxe6+ {[%clk 0:02:53.8]} 20... Qf7
{[%clk 0:02:52]} 21. Qxf7+ {[%clk 0:02:52.1]} 21... Rxf7 {[%clk 0:02:51.1]} 22.
Be3 {[%clk 0:02:51.9]} 22... b6 {[%clk 0:02:47.1]} 23. Rad1 {[%clk 0:02:50]}
23... Rd8 {[%clk 0:02:44]} 24. g3 {[%clk 0:02:42.8]} 24... c6 {[%clk 0:02:42.5]}
25. b3 {[%clk 0:02:41.5]} 25... c5 {[%clk 0:02:41.2]} 26. Bf4 {[%clk 0:02:40.1]}
26... d4 {[%clk 0:02:26]} 27. a4 {[%clk 0:02:37]} 27... Rdf8 {[%clk 0:02:23.1]}
28. Rd2 {[%clk 0:02:29.8]} 28... g5 {[%clk 0:02:21.1]} 29. Be5 {[%clk 0:02:27]}
29... Rf3 {[%clk 0:02:17.1]} 30. Bd6 {[%clk 0:02:10.3]} 30... R8f6 {[%clk
0:02:11.8]} 31. Re8+ {[%clk 0:02:02.2]} 31... Kh7 {[%clk 0:02:09.1]} 32. Be5
{[%clk 0:01:57.8]} 32... R6f5 {[%clk 0:02:04.6]} 33. g4 {[%clk 0:01:51.7]} 33...
Rf7 {[%clk 0:01:59.1]} 34. Kg2 {[%clk 0:01:18.5]} 34... Rxb3 {[%clk 0:01:55]}
35. h4 {[%clk 0:01:16.7]} 35... gxh4 {[%clk 0:01:50.9]} 36. f4 {[%clk
0:01:15.8]} 36... h3+ {[%clk 0:01:44.9]} 37. Kh2 {[%clk 0:01:14]} 37... h5
{[%clk 0:01:24.9]} 38. f5 {[%clk 0:01:07.5]} 38... Kh6 {[%clk 0:01:19.9]} 39.
Rh8+ {[%clk 0:01:00.3]} 39... Kg5 {[%clk 0:01:18.6]} 40. Rg8+ {[%clk 0:00:44]}
40... Kh4 {[%clk 0:01:14.9]} 41. Bf4 {[%clk 0:00:32.9]} 41... Rf3 {[%clk
0:01:06.6]} 42. Bg5+ {[%clk 0:00:27.2]} 42... Kxg4 {[%clk 0:01:05.3]} 43. f6
{[%clk 0:00:16.8]} 43... Kf5 {[%clk 0:01:02.4]} 44. Bh4 {[%clk 0:00:14.8]} 44...
d3 {[%clk 0:00:58.4]} 45. Rg5+ {[%clk 0:00:13]} 45... Kxf6 {[%clk 0:00:56.4]}
46. Rxh5+ {[%clk 0:00:12.9]} 46... Ke6 {[%clk 0:00:54.3]} 47. Rh6+ {[%clk
0:00:11.8]} 47... Kd5 {[%clk 0:00:52.5]} 48. Rxb6 {[%clk 0:00:11.1]} 48... Kc4
{[%clk 0:00:50]} 49. Rb5 {[%clk 0:00:10.2]} 49... Rf1 {[%clk 0:00:46.6]} 50.
Rdb2 {[%clk 0:00:08.4]} 50... d2 {[%clk 0:00:43.6]} 51. Rc2+ {[%clk 0:00:06.5]}
51... Kd3 {[%clk 0:00:42]} 52. Rxd2+ {[%clk 0:00:05.8]} 52... Kxd2 {[%clk
0:00:40.5]} 53. Rxc5 {[%clk 0:00:05.7]} 53... Kd3 {[%clk 0:00:38.5]} 54. Kxh3
{[%clk 0:00:04]} 54... R1f2 {[%clk 0:00:37.1]} 55. Bxf2 {[%clk 0:00:02.2]} 55...
Rxf2 {[%clk 0:00:37]} 56. Rxa5 {[%clk 0:00:01.6]} 56... Ke4 {[%clk 0:00:35.5]}
0-1

[Event "Live Chess"]
[Site "Chess.com"]
[Date "2023.05.20"]
[Round "-"]
[White "Pandreq"]
[Black "ZackirtyChess"]
[Result "1-0"]
[WhiteElo "1263"]
[BlackElo "1144"]
[TimeControl "300"]
[EndTime "9:56:32 PDT"]
[Termination "Pandreq won by checkmate"]

1. d4 {[%clk 0:04:57.7]} 1... f5 {[%clk 0:04:54]} 2. c4 {[%clk 0:04:56.6]} 2...
Nf6 {[%clk 0:04:53.1]} 3. Nc3 {[%clk 0:04:55.4]} 3... g6 {[%clk 0:04:52.1]} 4.
Bg5 {[%clk 0:04:54.1]} 4... Bg7 {[%clk 0:04:47.3]} 5. e3 {[%clk 0:04:49.7]} 5...
O-O {[%clk 0:04:45.4]} 6. Nf3 {[%clk 0:04:48.5]} 6... d6 {[%clk 0:04:42.9]} 7.
b4 {[%clk 0:04:40.4]} 7... Nbd7 {[%clk 0:04:41.3]} 8. c5 {[%clk 0:04:39]} 8...
e5 {[%clk 0:04:38.5]} 9. cxd6 {[%clk 0:04:35]} 9... cxd6 {[%clk 0:04:36.8]} 10.
dxe5 {[%clk 0:04:28.9]} 10... dxe5 {[%clk 0:04:36.7]} 11. Nd5 {[%clk 0:04:22.6]}
11... e4 {[%clk 0:04:32.7]} 12. Nxf6+ {[%clk 0:03:47.6]} 12... Nxf6 {[%clk
0:04:27.2]} 13. Qxd8 {[%clk 0:03:45.4]} 13... Rxd8 {[%clk 0:04:25.1]} 14. Bc4+
{[%clk 0:03:41.4]} 14... Kh8 {[%clk 0:04:23.3]} 15. Rc1 {[%clk 0:03:31.4]} 15...
h6 {[%clk 0:04:19]} 16. Bxf6 {[%clk 0:03:24.5]} 16... Bxf6 {[%clk 0:04:18.9]}
17. Nd2 {[%clk 0:03:19.2]} 17... a6 {[%clk 0:04:06.7]} 18. Nb3 {[%clk
0:03:10.1]} 18... g5 {[%clk 0:04:02.7]} 19. O-O {[%clk 0:03:08.3]} 19... b5
{[%clk 0:03:58.9]} 20. Bf7 {[%clk 0:02:55.4]} 20... f4 {[%clk 0:03:42.6]} 21.
exf4 {[%clk 0:02:50.8]} 21... gxf4 {[%clk 0:03:42.5]} 22. Rfd1 {[%clk
0:02:42.6]} 22... Rxd1+ {[%clk 0:03:35.5]} 23. Rxd1 {[%clk 0:02:41.3]} 23... Bf5
{[%clk 0:03:35.1]} 24. Rd6 {[%clk 0:02:35.5]} 24... Bg5 {[%clk 0:03:25.9]} 25.
h4 {[%clk 0:02:25.1]} 25... Bxh4 {[%clk 0:03:05.4]} 26. Rxh6+ {[%clk 0:02:23.5]}
26... Kg7 {[%clk 0:03:03.4]} 27. Rxh4 {[%clk 0:02:20.7]} 27... Kxf7 {[%clk
0:03:02.4]} 28. Rxf4 {[%clk 0:02:18.5]} 28... Kg6 {[%clk 0:03:00.5]} 29. Nd4
{[%clk 0:02:13.1]} 29... Rf8 {[%clk 0:02:51.3]} 30. g4 {[%clk 0:02:03.9]} 30...
Kg5 {[%clk 0:02:45.6]} 31. Rxf5+ {[%clk 0:01:54.9]} 31... Rxf5 {[%clk
0:02:43.7]} 32. Nxf5 {[%clk 0:01:53.2]} 32... Kxg4 {[%clk 0:02:42.2]} 33. Nd6
{[%clk 0:01:51.1]} 33... Kf4 {[%clk 0:02:37]} 34. Nb7 {[%clk 0:01:43.3]} 34...
Kf3 {[%clk 0:02:32.1]} 35. Nc5 {[%clk 0:01:39.4]} 35... e3 {[%clk 0:02:31.5]}
36. fxe3 {[%clk 0:01:38.3]} 36... Kxe3 {[%clk 0:02:31.4]} 37. Nxa6 {[%clk
0:01:37.1]} 37... Kd4 {[%clk 0:02:30.8]} 38. Nc7 {[%clk 0:01:35.4]} 38... Kc4
{[%clk 0:02:29.6]} 39. a3 {[%clk 0:01:30.7]} 39... Kb3 {[%clk 0:02:23.8]} 40.
Nxb5 {[%clk 0:01:29.4]} 40... Ka4 {[%clk 0:02:23.2]} 41. Nd6 {[%clk 0:01:26.3]}
41... Kxa3 {[%clk 0:02:19.6]} 42. b5 {[%clk 0:01:25.6]} 42... Kb2 {[%clk
0:02:18.5]} 43. b6 {[%clk 0:01:25.3]} 43... Ka3 {[%clk 0:02:18.2]} 44. b7 {[%clk
0:01:24.2]} 44... Ka4 {[%clk 0:02:17.9]} 45. b8=Q {[%clk 0:01:22.9]} 45... Ka3
{[%clk 0:02:17.3]} 46. Kf2 {[%clk 0:01:15.7]} 46... Ka4 {[%clk 0:02:16.5]} 47.
Ke3 {[%clk 0:01:15]} 47... Ka5 {[%clk 0:02:15.8]} 48. Qb5# {[%clk 0:01:13.9]}
1-0

[Event "Live Chess"]
[Site "Chess.com"]
[Date "2023.05.20"]
[Round "-"]
[White "VovaOvchar1990"]
[Black "ReeceHockton"]
[Result "1-0"]
[WhiteElo "1186"]
[BlackElo "321"]
[TimeControl "300"]
[EndTime "9:56:38 PDT"]
[Termination "VovaOvchar1990 won by checkmate"]

1. e4 {[%clk 0:04:58.5]} 1... e5 {[%clk 0:04:55.4]} 2. Bc4 {[%clk 0:04:58.4]}
2... Nc6 {[%clk 0:04:52.5]} 3. Qh5 {[%clk 0:04:57.7]} 3... g6 {[%clk 0:04:45.8]}
4. Qf3 {[%clk 0:04:52.6]} 4... Nf6 {[%clk 0:04:44.7]} 5. Nh3 {[%clk 0:04:48.5]}
5... Nd4 {[%clk 0:04:43.2]} 6. Qd1 {[%clk 0:04:47]} 6... Bc5 {[%clk 0:04:33.5]}
7. c3 {[%clk 0:04:44.7]} 7... Ne6 {[%clk 0:04:25.3]} 8. O-O {[%clk 0:04:36.8]}
8... O-O {[%clk 0:04:22.8]} 9. d3 {[%clk 0:04:33.3]} 9... h6 {[%clk 0:04:21.6]}
10. Bxh6 {[%clk 0:04:29.6]} 10... Re8 {[%clk 0:04:18.6]} 11. Ng5 {[%clk
0:04:22.9]} 11... Bf8 {[%clk 0:04:16.8]} 12. Nxe6 {[%clk 0:04:17.6]} 12... dxe6
{[%clk 0:04:13.1]} 13. Bxf8 {[%clk 0:04:14.2]} 13... Rxf8 {[%clk 0:04:12]} 14.
f4 {[%clk 0:04:11.4]} 14... Nh5 {[%clk 0:04:09.6]} 15. fxe5 {[%clk 0:04:07.8]}
15... c6 {[%clk 0:04:04.4]} 16. Rf3 {[%clk 0:04:06.1]} 16... b5 {[%clk
0:04:00.3]} 17. Bb3 {[%clk 0:04:04.2]} 17... Ba6 {[%clk 0:03:58.8]} 18. Rg3
{[%clk 0:04:02.8]} 18... Qd7 {[%clk 0:03:54.5]} 19. Qxh5 {[%clk 0:04:01.3]}
19... Kg7 {[%clk 0:03:47]} 20. Qh4 {[%clk 0:03:55.3]} 20... f6 {[%clk
0:03:30.5]} 21. Nd2 {[%clk 0:03:42.4]} 21... fxe5 {[%clk 0:03:25.3]} 22. Nf3
{[%clk 0:03:38.4]} 22... Qxd3 {[%clk 0:03:18.2]} 23. Nxe5 {[%clk 0:03:35.8]}
23... Qd6 {[%clk 0:03:03.4]} 24. Rxg6# {[%clk 0:03:34.4]} 1-0

[Event "Live Chess"]
[Site "Chess.com"]
[Date "2023.05.20"]
[Round "-"]
[White "JanMur7"]
[Black "ChessTWSS"]
[Result "1-0"]
[WhiteElo "1992"]
[BlackElo "1683"]
[TimeControl "300"]
[EndTime "9:56:45 PDT"]
[Termination "JanMur7 won on time"]

1. e4 {[%clk 0:04:57.7]} 1... c5 {[%clk 0:04:49]} 2. Nf3 {[%clk 0:04:56.5]} 2...
Nc6 {[%clk 0:04:45.3]} 3. c3 {[%clk 0:04:55.5]} 3... Nf6 {[%clk 0:04:40.2]} 4.
e5 {[%clk 0:04:50]} 4... Nd5 {[%clk 0:04:35.3]} 5. d4 {[%clk 0:04:44.3]} 5...
cxd4 {[%clk 0:04:28.5]} 6. cxd4 {[%clk 0:04:42]} 6... g6 {[%clk 0:04:19.7]} 7.
Nc3 {[%clk 0:04:32.2]} 7... Nxc3 {[%clk 0:04:15.3]} 8. bxc3 {[%clk 0:04:32.1]}
8... Bg7 {[%clk 0:04:10.1]} 9. Bd3 {[%clk 0:04:27.4]} 9... O-O {[%clk
0:04:04.6]} 10. O-O {[%clk 0:04:25.5]} 10... d6 {[%clk 0:03:59.6]} 11. exd6
{[%clk 0:04:20.7]} 11... Qxd6 {[%clk 0:03:53.8]} 12. a4 {[%clk 0:04:18.9]} 12...
a5 {[%clk 0:03:37.1]} 13. Ba3 {[%clk 0:04:08.5]} 13... Qc7 {[%clk 0:03:19.8]}
14. Re1 {[%clk 0:04:03.6]} 14... Bg4 {[%clk 0:03:11.5]} 15. h3 {[%clk
0:03:59.1]} 15... Bxf3 {[%clk 0:03:08.6]} 16. Qxf3 {[%clk 0:03:53.5]} 16... Rfe8
{[%clk 0:02:56.4]} 17. Bb5 {[%clk 0:03:46.3]} 17... e6 {[%clk 0:02:38]} 18. Rab1
{[%clk 0:03:37.6]} 18... Rec8 {[%clk 0:02:14.6]} 19. Rec1 {[%clk 0:02:51.8]}
19... f5 {[%clk 0:02:00.4]} 20. Bxc6 {[%clk 0:02:43.9]} 20... Qxc6 {[%clk
0:01:54.6]} 21. Qxc6 {[%clk 0:02:39.4]} 21... Rxc6 {[%clk 0:01:51]} 22. Rxb7
{[%clk 0:02:37.3]} 22... Rc4 {[%clk 0:01:43.2]} 23. Bc5 {[%clk 0:02:06.5]} 23...
Rxa4 {[%clk 0:01:37.1]} 24. Re1 {[%clk 0:01:59.2]} 24... Rc4 {[%clk 0:01:31.2]}
25. Rxe6 {[%clk 0:01:55.1]} 25... Rxc3 {[%clk 0:01:22.8]} 26. Ree7 {[%clk
0:01:52.7]} 26... Bf8 {[%clk 0:01:09]} 27. Rxh7 {[%clk 0:01:45.7]} 27... Bxc5
{[%clk 0:01:05]} 28. dxc5 {[%clk 0:01:43.8]} 28... Rxc5 {[%clk 0:00:58.2]} 29.
Rbg7+ {[%clk 0:01:42.1]} 29... Kf8 {[%clk 0:00:55]} 30. Rxg6 {[%clk 0:01:38.4]}
30... Rc1+ {[%clk 0:00:47]} 31. Kh2 {[%clk 0:01:36.6]} 31... a4 {[%clk
0:00:40.4]} 32. Rh8+ {[%clk 0:01:34.6]} 32... Kf7 {[%clk 0:00:33.2]} 33. Rxa8
{[%clk 0:01:33.4]} 33... Kxg6 {[%clk 0:00:28.1]} 34. Rxa4 {[%clk 0:01:32.3]}
34... Rc2 {[%clk 0:00:24]} 35. Kg3 {[%clk 0:01:30.7]} 35... Rc3+ {[%clk
0:00:17.5]} 36. f3 {[%clk 0:01:30]} 36... Kg5 {[%clk 0:00:15.7]} 37. Ra6 {[%clk
0:01:19.5]} 37... f4+ {[%clk 0:00:11.8]} 38. Kh2 {[%clk 0:01:18.3]} 38... Kf5
{[%clk 0:00:09.6]} 39. Ra5+ {[%clk 0:01:15.2]} 39... Kg6 {[%clk 0:00:08]} 40. h4
{[%clk 0:01:15.1]} 40... Kf6 {[%clk 0:00:04.2]} 41. h5 {[%clk 0:01:13.5]} 41...
Kg7 {[%clk 0:00:01.8]} 42. Ra6 {[%clk 0:01:11.6]} 42... Kh7 {[%clk 0:00:00.8]}
43. h6 {[%clk 0:01:10.6]} 1-0

[Event "Live Chess"]
[Site "Chess.com"]
[Date "2023.05.20"]
[Round "-"]
[White "LodeshChess"]
[Black "Driftboard"]
[Result "1-0"]
[WhiteElo "894"]
[BlackElo "690"]
[TimeControl "300"]
[EndTime "9:56:45 PDT"]
[Termination "LodeshChess won by checkmate"]

1. e4 {[%clk 0:04:59.6]} 1... e5 {[%clk 0:04:54.6]} 2. Nf3 {[%clk 0:04:58.5]}
2... Nc6 {[%clk 0:04:51.4]} 3. c3 {[%clk 0:04:55.9]} 3... Nf6 {[%clk 0:04:48.8]}
4. d4 {[%clk 0:04:55.3]} 4... exd4 {[%clk 0:04:45.4]} 5. e5 {[%clk 0:04:54.4]}
5... Ng8 {[%clk 0:04:41]} 6. cxd4 {[%clk 0:04:53.3]} 6... Bb4+ {[%clk
0:04:36.6]} 7. Nc3 {[%clk 0:04:51.9]} 7... Bxc3+ {[%clk 0:04:35.7]} 8. bxc3
{[%clk 0:04:51.5]} 8... d6 {[%clk 0:04:35]} 9. Bb5 {[%clk 0:04:48.8]} 9... dxe5
{[%clk 0:04:31.8]} 10. Nxe5 {[%clk 0:04:47.5]} 10... Bd7 {[%clk 0:04:29.8]} 11.
Nxd7 {[%clk 0:04:46.2]} 11... Qxd7 {[%clk 0:04:28]} 12. O-O {[%clk 0:04:45.4]}
12... O-O-O {[%clk 0:04:22.9]} 13. Bg5 {[%clk 0:04:34.6]} 13... f6 {[%clk
0:04:19.1]} 14. Be3 {[%clk 0:04:31.8]} 14... a6 {[%clk 0:04:17.5]} 15. Bd3
{[%clk 0:04:26.4]} 15... Nh6 {[%clk 0:04:08.2]} 16. Bxh6 {[%clk 0:04:20.3]}
16... gxh6 {[%clk 0:04:04.6]} 17. Qf3 {[%clk 0:04:19.9]} 17... Rhg8 {[%clk
0:03:59.4]} 18. Bf5 {[%clk 0:04:19.4]} 18... Qxf5 {[%clk 0:03:55.5]} 19. Qxf5+
{[%clk 0:04:18.5]} 19... Kb8 {[%clk 0:03:51.1]} 20. Qxh7 {[%clk 0:04:13.8]}
20... Rh8 {[%clk 0:03:47]} 21. Qf5 {[%clk 0:04:10.3]} 21... Rdf8 {[%clk
0:03:36.2]} 22. Rab1 {[%clk 0:04:08.4]} 22... Na5 {[%clk 0:03:34.7]} 23. Qxa5
{[%clk 0:04:03.4]} 23... c6 {[%clk 0:03:33.1]} 24. Qxa6 {[%clk 0:03:59.8]} 24...
Kc8 {[%clk 0:03:29]} 25. Qxb7+ {[%clk 0:03:56.7]} 25... Kd8 {[%clk 0:03:28]} 26.
Rfe1 {[%clk 0:03:45.9]} 26... Re8 {[%clk 0:03:24.9]} 27. Rxe8+ {[%clk 0:03:39]}
27... Rxe8 {[%clk 0:03:20.6]} 28. Qb8+ {[%clk 0:03:38.2]} 28... Kd7 {[%clk
0:03:19.8]} 29. Qb7+ {[%clk 0:03:30.2]} 29... Kd6 {[%clk 0:03:17.1]} 30. Qb4+
{[%clk 0:03:22.9]} 30... Kd7 {[%clk 0:03:15.2]} 31. Qb7+ {[%clk 0:03:19.4]}
31... Kd6 {[%clk 0:03:13.7]} 32. Kf1 {[%clk 0:03:17.1]} 32... Kd5 {[%clk
0:03:08.9]} 33. Qd7+ {[%clk 0:03:11]} 33... Kc4 {[%clk 0:03:06.3]} 34. Qxe8
{[%clk 0:03:10.5]} 34... Kxc3 {[%clk 0:03:04.9]} 35. Qxc6+ {[%clk 0:03:09.5]}
35... Kxd4 {[%clk 0:03:04.4]} 36. Rd1+ {[%clk 0:03:08.8]} 36... Ke5 {[%clk
0:03:01]} 37. Qd6+ {[%clk 0:03:06.9]} 37... Kf5 {[%clk 0:02:59.5]} 38. Rd5+
{[%clk 0:03:03.6]} 38... Ke4 {[%clk 0:02:56.5]} 39. Qe6+ {[%clk 0:02:59.4]}
39... Kf4 {[%clk 0:02:55.1]} 40. Qf5# {[%clk 0:02:55.2]} 1-0

[Event "Live Chess"]
[Site "Chess.com"]
[Date "2023.05.20"]
[Round "-"]
[White "lamteama1"]
[Black "Misha145Chess"]
[Result "0-1"]
[WhiteElo "1055"]
[BlackElo "599"]
[TimeControl "300"]
[EndTime "9:56:50 PDT"]
[Termination "Misha145Chess won by resignation"]

1. e4 {[%clk 0:04:41.7]} 1... e6 {[%clk 0:04:58]} 2. d3 {[%clk 0:04:32]} 2... d5
{[%clk 0:04:52.8]} 3. Nf3 {[%clk 0:04:23.8]} 3... dxe4 {[%clk 0:04:48.9]} 4.
dxe4 {[%clk 0:04:22.3]} 4... Qxd1+ {[%clk 0:04:48.8]} 5. Kxd1 {[%clk 0:04:20.6]}
5... e5 {[%clk 0:04:46.6]} 6. Nxe5 {[%clk 0:04:16.5]} 6... Nc6 {[%clk
0:04:45.3]} 7. Bb5 {[%clk 0:03:59.5]} 7... Bd7 {[%clk 0:04:41.8]} 8. Bf4 {[%clk
0:03:29.3]} 8... Nxe5 {[%clk 0:04:38.6]} 9. Bxe5 {[%clk 0:03:25.8]} 9... Bxb5
{[%clk 0:04:36.7]} 10. Bxc7 {[%clk 0:03:06.5]} 10... Nf6 {[%clk 0:04:24]} 11.
Nc3 {[%clk 0:02:51.6]} 11... Bc6 {[%clk 0:04:15.1]} 12. e5 {[%clk 0:02:40.4]}
12... Ne4 {[%clk 0:04:12.1]} 13. Nxe4 {[%clk 0:02:07]} 13... Bxe4 {[%clk
0:04:10.5]} 14. Rg1 {[%clk 0:02:05.6]} 14... f6 {[%clk 0:04:03.1]} 15. f3 {[%clk
0:01:46.9]} 15... Bc6 {[%clk 0:03:55.9]} 16. Re1 {[%clk 0:01:39.1]} 16... Be7
{[%clk 0:03:46.4]} 17. Ke2 {[%clk 0:01:30.6]} 17... fxe5 {[%clk 0:03:40.6]} 18.
Rf1 {[%clk 0:01:17.7]} 18... Bf6 {[%clk 0:03:34.7]} 19. Rad1 {[%clk 0:01:05.8]}
19... O-O {[%clk 0:03:31.3]} 20. Kf2 {[%clk 0:00:41.5]} 20... Bb5 {[%clk
0:03:26.9]} 21. Rfe1 {[%clk 0:00:30.1]} 21... Rfe8 {[%clk 0:03:22.6]} 22. Rd5
{[%clk 0:00:19]} 22... Rac8 {[%clk 0:03:14]} 23. Red1 {[%clk 0:00:17.1]} 23...
Rxc7 {[%clk 0:03:11.4]} 24. Rd8 {[%clk 0:00:15]} 24... Rxd8 {[%clk 0:03:10.8]}
25. Rxd8+ {[%clk 0:00:14.1]} 25... Bxd8 {[%clk 0:03:10.7]} 26. f4 {[%clk
0:00:11.3]} 26... exf4 {[%clk 0:03:09.4]} 27. Kf3 {[%clk 0:00:10.2]} 27... Rxc2
{[%clk 0:03:08]} 28. Kxf4 {[%clk 0:00:08.7]} 28... Rxb2 {[%clk 0:03:06.6]} 0-1